fUSD/lending_fUSD_20260107
["ID","MTS","AMOUNT","RATE_DAILY","PERIOD"]
[400683896,1767778981916,3471.79075218,0.00016006,2]
[400683897,1767778981940,7744.17509865,0.00016006,2]
[400683910,1767779035046,386.0,0.00032876,120]
[400683912,1767779051691,1775.0,0.00032,120]
[400683926,1767779103029,178.0,0.00032825,120]
[400683941,1767779162990,-200.0,0.00016041,2]
[400683942,1767779166257,500.0,0.00015918,2]
[400683943,1767779193184,543.55761943,0.00016006,2]
[400683944,1767779194034,-300.0,0.00016104,2]
[400683945,1767779194059,-2.29764947,0.00016104,2]
[400683952,1767779241561,-151.0,0.00016096,2]
[400683953,1767779241588,-49.0,0.00016096,2]
[400683954,1767779260455,8556.45238057,0.00016006,2]
[400683955,1767779260482,10000.01,0.00016006,2]
[400683956,1767779260508,10000.01,0.00016006,2]
[400683957,1767779260534,10000.01,0.00016006,2]
[400683958,1767779260560,10000.01,0.00016006,2]
[400683959,1767779260586,10000.01,0.00016006,2]
[400683960,1767779260612,10000.01,0.00016006,2]
[400683961,1767779260639,10000.01,0.00016006,2]
[400683962,1767779260665,10000.01,0.00016006,2]
[400683963,1767779260690,10000.01,0.00016006,2]
[400683964,1767779262311,-500.0,0.00016006,2]
[400683965,1767779263266,-500.0,0.00016006,2]
[400683970,1767779266370,-500.0,0.00016006,2]
[400683975,1767779270662,-500.0,0.00016006,2]
[400683977,1767779273306,-500.0,0.00016006,2]
[400683978,1767779279034,-500.0,0.00016006,2]
[400683979,1767779294464,-500.0,0.00015728,3]
[400683980,1767779296666,-499.0,0.00015728,3]
[400683981,1767779296689,-1.0,0.00016005,2]
[400683982,1767779301500,-500.0,0.00015707,2]
[400683983,1767779303138,-500.0,0.00015707,2]
[400683984,1767779305881,-500.0,0.00015707,2]
[400683985,1767779309178,-403.8,0.00015707,2]
[400683986,1767779309201,-96.2,0.00016005,2]
[400683987,1767779311987,-202.8,0.00016005,2]
[400683988,1767779312011,-297.2,0.00016005,2]
[400683989,1767779313555,-252.8,0.00016005,2]
[400683990,1767779313580,-247.2,0.00016006,2]
[400683991,1767779317556,-500.0,0.00016006,2]
[400683992,1767779319385,-500.0,0.00016006,2]
[400683993,1767779320603,-500.0,0.00016006,2]
[400683994,1767779325536,-500.0,0.00016006,2]
[400683995,1767779327184,-500.0,0.00016006,2]
[400683996,1767779329913,-500.0,0.00016006,2]
[400683998,1767779331554,-3023.43031717,0.00016006,2]
[400683999,1767779331713,-10000.01,0.00016006,2]
[400684001,1767779331960,-10000.01,0.00016006,2]
[400684002,1767779332084,-10000.01,0.00016006,2]
[400684004,1767779332236,-10000.01,0.00016006,2]
[400684005,1767779332403,-10000.01,0.00016006,2]
[400684008,1767779332727,-10000.01,0.00016006,2]
[400684009,1767779332844,-10000.01,0.00016006,2]
[400684010,1767779333012,-10000.01,0.00016006,2]
[400684014,1767779334021,-500.0,0.00016006,2]
[400684019,1767779336003,-500.0,0.00016006,2]
[400684022,1767779341484,-500.0,0.00016006,2]
[400684024,1767779344190,-500.0,0.00016006,2]
[400684026,1767779346458,-500.0,0.00016006,2]
[400684027,1767779349749,-531.89214436,0.00016006,2]
[400684029,1767779351680,-500.0,0.00016006,2]
[400684031,1767779357171,-475.82894331,0.00016006,2]
[400684033,1767779359243,-348.34211338,0.00016006,2]
[400684034,1767779361230,-10000.01,0.00016006,2]
[400684035,1767779361500,-10000.01,0.00016006,2]
[400684036,1767779361660,-10000.01,0.00016006,2]
[400684037,1767779361858,-10000.01,0.00016006,2]
[400684038,1767779362161,-10000.01,0.00016006,2]
[400684039,1767779362396,-10000.01,0.00016006,2]
[400684040,1767779362512,-10000.01,0.00016006,2]
[400684041,1767779362684,-10000.01,0.00016006,2]
[400684042,1767779366716,-255.0,0.00016006,2]
[400684043,1767779369273,-220.82894331,0.00015906,2]
[400684044,1767779373546,-259.75483917,0.00015906,2]
[400684045,1767779374357,-10000.01,0.00015906,2]
[400684046,1767779377466,-500.0,0.00015906,2]
[400684047,1767779382156,-500.0,0.00015906,2]
[400684048,1767779384765,-207.14352158,0.00015906,2]
[400684049,1767779384793,-292.85647842,0.00015906,2]
[400684050,1767779389646,-500.0,0.00015906,2]
[400684051,1767779392802,-500.0,0.00015906,2]
[400684052,1767779398141,-643.93679895,0.00015906,2]
[400684090,1767779431990,-1200.0,0.00015905,2]
[400684092,1767779432000,-283.0,0.00015905,2]
[400684094,1767779432010,-1400.54641871,0.00015905,2]
[400684096,1767779432019,-300.0,0.00015906,2]
[400684098,1767779432029,-250.0,0.00015906,2]
[400684100,1767779432038,-9460.38241937,0.00015906,2]
[400684102,1767779432049,-300.0,0.00015965,2]
[400684104,1767779432059,-300.0,0.00015965,2]
[400684106,1767779432068,-338.7228,0.00016004,2]
[400684108,1767779432078,-500.0,0.00016005,2]
[400684110,1767779432087,-300.0,0.00016005,2]
[400684112,1767779432096,-300.0,0.00016005,2]
[400684114,1767779432106,-509.43981979,0.00016005,2]
[400684116,1767779432117,-509.43981979,0.00016005,2]
[400684118,1767779432127,-509.43981979,0.00016005,2]
[400684119,1767779432137,-509.43981979,0.00016005,2]
[400684120,1767779432147,-509.43981979,0.00016005,2]
[400684121,1767779432156,-509.43981979,0.00016005,2]
[400684122,1767779432166,-509.43981979,0.00016005,2]
[400684123,1767779432176,-509.43981979,0.00016005,2]
[400684124,1767779432187,-509.43981979,0.00016005,2]
[400684125,1767779432197,-509.43981979,0.00016005,2]
[400684126,1767779432207,-509.43981979,0.00016005,2]
[400684127,1767779432216,-509.43981979,0.00016005,2]
[400684128,1767779432226,-509.43981979,0.00016005,2]
[400684129,1767779432235,-509.43981979,0.00016005,2]
[400684130,1767779432245,-509.43981979,0.00016005,2]
[400684131,1767779432255,-509.43981979,0.00016005,2]
[400684132,1767779432264,-509.43981979,0.00016005,2]
[400684133,1767779432274,-509.43981979,0.00016005,2]
[400684134,1767779432283,-509.43981979,0.00016005,2]
[400684135,1767779432292,-509.43981979,0.00016005,2]
[400684136,1767779432302,-509.43981979,0.00016005,2]
[400684137,1767779432312,-509.43981979,0.00016005,2]
[400684138,1767779432322,-509.43981979,0.00016005,2]
[400684139,1767779432331,-509.43981979,0.00016005,2]
[400684140,1767779432341,-509.43981979,0.00016005,2]
[400684141,1767779432350,-509.43981979,0.00016005,2]
[400684142,1767779432360,-509.43981979,0.00016005,2]
[400684143,1767779432369,-509.43981979,0.00016005,2]
[400684144,1767779432379,-509.43981979,0.00016005,2]
[400684145,1767779432388,-509.43981979,0.00016005,2]
[400684146,1767779432398,-509.43981979,0.00016005,2]
[400684147,1767779432407,-509.43981979,0.00016005,2]
[400684148,1767779432417,-509.43981979,0.00016005,2]
[400684149,1767779432427,-509.43981979,0.00016005,2]
[400684150,1767779432437,-509.43981979,0.00016005,2]
[400684151,1767779432447,-509.43981979,0.00016005,2]
[400684152,1767779432456,-509.43981979,0.00016005,2]
[400684153,1767779432465,-509.43981979,0.00016005,2]
[400684154,1767779432475,-509.43981979,0.00016005,2]
[400684155,1767779432484,-509.43981979,0.00016005,2]
[400684156,1767779432494,-509.43981979,0.00016005,2]
[400684157,1767779432503,-727561.60410121,0.00016006,2]
[400684158,1767779432513,-3105.4734,0.00016006,2]
[400684159,1767779432522,-5853.4665,0.00016006,2]
[400684160,1767779432531,-2087.668,0.00016006,2]
[400684161,1767779432541,-161.6509,0.00016082,2]
[400684162,1767779432551,-1391.05,0.00016096,2]
[400684163,1767779432560,-102.0,0.00016096,2]
[400684164,1767779432570,-151.0,0.00016096,2]
[400684165,1767779432580,-151.0,0.00016096,2]
[400684166,1767779432589,-151.0,0.00016096,2]
[400684167,1767779432599,-289.99586171,0.00016096,2]
[400684168,1767779432609,-500.0,0.00016096,2]
[400684169,1767779432619,-500.0,0.00016096,2]
[400684170,1767779432629,-302.59029446,0.00016096,2]
[400684171,1767779432639,-200.0,0.00016096,2]
[400684172,1767779432650,-151.0,0.00016096,2]
[400684173,1767779432660,-151.0,0.00016096,2]
[400684174,1767779432671,-151.0,0.00016096,2]
[400684175,1767779432681,-151.0,0.00016096,2]
[400684176,1767779432691,-151.0,0.00016096,2]
[400684177,1767779432701,-151.0,0.00016096,2]
[400684178,1767779432710,-151.0,0.00016096,2]
[400684179,1767779432720,-151.0,0.00016096,2]
[400684180,1767779432729,-200.0,0.00016096,2]
[400684181,1767779432739,-151.0,0.00016096,2]
[400684182,1767779432749,-218.65304711,0.00016096,2]
[400684183,1767779432758,-151.0,0.00016096,2]
[400684184,1767779432767,-151.0,0.00016096,2]
[400684185,1767779432777,-500.0,0.00016096,2]
[400684186,1767779432786,-195.0,0.00016105,2]
[400684187,1767779432796,-1075.85404383,0.00016105,2]
[400684188,1767779432805,-500.0,0.00016105,2]
[400684189,1767779432815,-500.0,0.00016105,2]
[400684190,1767779432824,-500.0,0.00016105,2]
[400684191,1767779432833,-500.0,0.00016105,2]
[400684192,1767779432843,-500.0,0.00016105,2]
[400684193,1767779432852,-500.0,0.00016105,2]
[400684194,1767779432861,-1373.10469496,0.00016105,2]
[400684195,1767779432872,-500.0,0.00016105,2]
[400684196,1767779432881,-500.0,0.00016105,2]
[400684197,1767779432891,-527.24343499,0.00016105,2]
[400684198,1767779432901,-500.0,0.00016105,2]
[400684199,1767779432912,-523.12649514,0.00016105,2]
[400684200,1767779432922,-203.51299243,0.00016105,2]
[400684201,1767779432932,-500.0,0.00016105,2]
[400684202,1767779432942,-500.0,0.00016105,2]
[400684203,1767779432955,-500.0,0.00016105,2]
[400684204,1767779432965,-500.0,0.00016105,2]
[400684205,1767779432974,-500.0,0.00016105,2]
[400684206,1767779432986,-500.0,0.00016105,2]
[400684207,1767779432996,-169.46839138,0.00016105,2]
[400684208,1767779433006,-500.0,0.00016105,2]
[400684209,1767779433015,-500.0,0.00016105,2]
[400684210,1767779433025,-500.0,0.00016105,2]
[400684211,1767779433035,-500.0,0.00016105,2]
[400684212,1767779433047,-500.0,0.00016105,2]
[400684213,1767779433058,-500.0,0.00016105,2]
[400684214,1767779433067,-500.0,0.00016105,2]
[400684215,1767779433077,-500.0,0.00016105,2]
[400684216,1767779433086,-500.0,0.00016105,2]
[400684217,1767779433096,-500.0,0.00016105,2]
[400684218,1767779433106,-500.0,0.00016105,2]
[400684219,1767779433116,-500.0,0.00016105,2]
[400684220,1767779433127,-500.0,0.00016105,2]
[400684221,1767779433137,-339.0332149,0.00016105,2]
[400684222,1767779433147,-500.0,0.00016105,2]
[400684223,1767779433158,-500.0,0.00016105,2]
[400684224,1767779433168,-500.0,0.00016105,2]
[400684225,1767779433178,-500.0,0.00016105,2]
[400684226,1767779433188,-500.0,0.00016105,2]
[400684227,1767779433197,-500.0,0.00016105,2]
[400684228,1767779433206,-500.0,0.00016105,2]
[400684229,1767779433216,-500.0,0.00016105,2]
[400684230,1767779433224,-500.0,0.00016105,2]
[400684231,1767779433233,-500.0,0.00016105,2]
[400684232,1767779433243,-500.0,0.00016105,2]
[400684233,1767779433253,-500.0,0.00016105,2]
[400684234,1767779433263,-500.0,0.00016105,2]
[400684235,1767779433274,-1000.0,0.00016106,2]
[400684236,1767779433284,-11687.73730403,0.00016128,2]
[400684237,1767779433294,-11397.17569668,0.00016128,2]
[400684238,1767779433304,-500.0,0.00016204,2]
[400684239,1767779433315,-420.4969783,0.00016205,2]
[400684240,1767779433324,-515.08412896,0.00016205,2]
[400684241,1767779433334,-508.16431547,0.00016205,2]
[400684242,1767779433345,-500.0,0.00016205,2]
[400684243,1767779433355,-517.38475435,0.00016205,2]
[400684244,1767779433365,-500.0,0.00016205,2]
[400684245,1767779433376,-500.0,0.00016205,2]
[400684246,1767779433386,-500.0,0.00016205,2]
[400684247,1767779433396,-613.44929106,0.00016205,2]
[400684248,1767779433406,-500.0,0.00016205,2]
[400684249,1767779433418,-500.0,0.00016205,2]
[400684250,1767779433428,-500.0,0.00016205,2]
[400684251,1767779433438,-500.0,0.00016205,2]
[400684252,1767779433448,-523.03584053,0.00016205,2]
[400684253,1767779433457,-500.0,0.00016205,2]
[400684254,1767779433466,-500.0,0.00016205,2]
[400684255,1767779433476,-500.0,0.00016205,2]
[400684256,1767779433485,-500.0,0.00016205,2]
[400684257,1767779433494,-500.0,0.00016205,2]
[400684258,1767779433504,-500.0,0.00016205,2]
[400684259,1767779433513,-500.0,0.00016205,2]
[400684261,1767779433523,-500.0,0.00016205,2]
[400684263,1767779433532,-500.0,0.00016205,2]
[400684265,1767779433542,-300.32189939,0.00016205,2]
[400684266,1767779433551,-500.0,0.00016205,2]
[400684268,1767779433561,-500.0,0.00016205,2]
[400684270,1767779433571,-500.0,0.00016205,2]
[400684272,1767779433581,-500.0,0.00016205,2]
[400684274,1767779433592,-500.0,0.00016279,2]
[400684276,1767779433602,-580.31842491,0.00016305,2]
[400684278,1767779433611,-500.0,0.00016305,2]
[400684279,1767779433621,-500.0,0.00016305,2]
[400684281,1767779433631,-500.0,0.00016305,2]
[400684283,1767779433640,-419.33594592,0.00016305,2]
[400684285,1767779433649,-502.28702111,0.00016305,2]
[400684287,1767779433659,-537.34234938,0.00016338,2]
[400684289,1767779433669,-11687.73730403,0.00016349,2]
[400684291,1767779433678,-11397.17569668,0.00016349,2]
[400684293,1767779433688,-1391.05,0.0001637,2]
[400684295,1767779433697,-1483.98,0.00016395,2]
[400684297,1767779433707,-567.12541952,0.00016438,2]
[400684299,1767779433716,-567.12541952,0.00016438,2]
[400684300,1767779433726,-567.12541952,0.00016438,2]
[400684302,1767779433735,-567.12541952,0.00016438,2]
[400684304,1767779433745,-567.12541952,0.00016438,2]
[400684306,1767779433760,-567.12541952,0.00016438,2]
[400684308,1767779433782,-567.12541952,0.00016438,2]
[400684310,1767779433794,-567.12541952,0.00016438,2]
[400684312,1767779433806,-567.12541952,0.00016438,2]
[400684314,1767779433817,-567.12541952,0.00016438,2]
[400684316,1767779433827,-567.12541952,0.00016438,2]
[400684318,1767779433838,-567.12541952,0.00016438,2]
[400684320,1767779433849,-567.12541952,0.00016438,2]
[400684322,1767779433859,-567.12541952,0.00016438,2]
[400684324,1767779433870,-567.12541952,0.00016438,2]
[400684325,1767779433880,-567.12541952,0.00016438,2]
[400684327,1767779433890,-567.12541952,0.00016438,2]
[400684329,1767779433902,-567.12541952,0.00016438,2]
[400684331,1767779433911,-567.12541952,0.00016438,2]
[400684333,1767779433921,-567.12541952,0.00016438,2]
[400684335,1767779433932,-567.12541952,0.00016438,2]
[400684337,1767779433943,-567.12541952,0.00016438,2]
[400684360,1767779434212,-567.12541952,0.00016438,2]
[400684362,1767779434222,-567.12541952,0.00016438,2]
[400684364,1767779434231,-567.12541952,0.00016438,2]
[400684366,1767779434242,-567.12541952,0.00016438,2]
[400684368,1767779434251,-567.12541952,0.00016438,2]
[400684370,1767779434261,-567.12541952,0.00016438,2]
[400684371,1767779434271,-567.12541952,0.00016438,2]
[400684374,1767779434283,-567.12541952,0.00016438,2]
[400684375,1767779434292,-567.12541952,0.00016438,2]
[400684377,1767779434302,-567.12541952,0.00016438,2]
[400684379,1767779434312,-567.12541952,0.00016438,2]
[400684381,1767779434321,-567.12541952,0.00016438,2]
[400684383,1767779434332,-567.12541952,0.00016438,2]
[400684385,1767779434342,-567.12541952,0.00016438,2]
[400684387,1767779434351,-567.12541952,0.00016438,2]
[400684389,1767779434361,-567.12541952,0.00016438,2]
[400684391,1767779434371,-567.12541952,0.00016438,2]
[400684393,1767779434381,-567.12541952,0.00016438,2]
[400684395,1767779434391,-567.12541952,0.00016438,2]
[400684396,1767779434400,-567.12541952,0.00016438,2]
[400684398,1767779434410,-567.12541952,0.00016438,2]
[400684400,1767779434420,-567.12541952,0.00016438,2]
[400684402,1767779434431,-567.12541952,0.00016438,2]
[400684404,1767779434440,-567.12541952,0.00016438,2]
[400684406,1767779434450,-567.12541952,0.00016438,2]
[400684408,1767779434460,-567.12541952,0.00016438,2]
[400684410,1767779434469,-567.12541952,0.00016438,2]
[400684412,1767779434478,-567.12541952,0.00016438,2]
[400684414,1767779434488,-567.12541952,0.00016438,2]
[400684416,1767779434497,-567.12541952,0.00016438,2]
[400684418,1767779434506,-567.12541952,0.00016438,2]
[400684419,1767779434515,-567.12541952,0.00016438,2]
[400684421,1767779434525,-567.12541952,0.00016438,2]
[400684423,1767779434535,-567.12541952,0.00016438,2]
[400684425,1767779434544,-567.12541952,0.00016438,2]
[400684427,1767779434554,-567.12541952,0.00016438,2]
[400684429,1767779434563,-695.69067036,0.00016438,2]
[400684431,1767779434572,-695.69067036,0.00016438,2]
[400684433,1767779434581,-695.69067036,0.00016438,2]
[400684435,1767779434591,-695.69067036,0.00016438,2]
[400684437,1767779434600,-695.69067036,0.00016438,2]
[400684438,1767779434610,-695.69067036,0.00016438,2]
[400684440,1767779434622,-695.69067036,0.00016438,2]
[400684442,1767779434631,-695.69067036,0.00016438,2]
[400684444,1767779434641,-695.69067036,0.00016438,2]
[400684445,1767779434651,-695.69067036,0.00016438,2]
[400684446,1767779434660,-695.69067036,0.00016438,2]
[400684447,1767779434670,-695.69067036,0.00016438,2]
[400684448,1767779434680,-695.69067036,0.00016438,2]
[400684449,1767779434691,-695.69067036,0.00016438,2]
[400684450,1767779434700,-695.69067036,0.00016438,2]
[400684451,1767779434710,-695.69067036,0.00016438,2]
[400684452,1767779434719,-695.69067036,0.00016438,2]
[400684453,1767779434729,-695.69067036,0.00016438,2]
[400684454,1767779434738,-695.69067036,0.00016438,2]
[400684455,1767779434748,-695.69067036,0.00016438,2]
[400684456,1767779434757,-695.69067036,0.00016438,2]
[400684457,1767779434767,-695.69067036,0.00016438,2]
[400684458,1767779434776,-695.69067036,0.00016438,2]
[400684459,1767779434785,-695.69067036,0.00016438,2]
[400684460,1767779434795,-695.69067036,0.00016438,2]
[400684461,1767779434804,-695.69067036,0.00016438,2]
[400684462,1767779434814,-695.69067036,0.00016438,2]
[400684463,1767779434823,-695.69067036,0.00016438,2]
[400684464,1767779434833,-695.69067036,0.00016438,2]
[400684465,1767779434842,-1903.8,0.00016492,2]
[400684466,1767779434851,-500.0,0.00016553,2]
[400684467,1767779434861,-26082.36424048,0.00016557,2]
[400684468,1767779434870,-11687.73730403,0.00016571,2]
[400684469,1767779434880,-11397.17569668,0.00016571,2]
[400684470,1767779434890,-1391.05,0.00016644,2]
[400684471,1767779434899,-200.0,0.00016644,2]
[400684472,1767779434909,-256.57914567,0.00016644,2]
[400684473,1767779434920,-500.0,0.00016644,2]
[400684474,1767779434930,-511.54,0.0001675,2]
[400684476,1767779434940,-11687.73730403,0.00016792,2]
[400684477,1767779434955,-11397.17569668,0.00016792,2]
[400684479,1767779434964,-500.0,0.00016827,2]
[400684480,1767779434974,-500.0,0.00016847,2]
[400684482,1767779434984,-612.17704163,0.00016847,2]
[400684484,1767779434995,-1391.05,0.00016918,2]
[400684486,1767779435004,-150.0,0.00016966,2]
[400684488,1767779435014,-250.0,0.00017,2]
[400684490,1767779435024,-11687.73730403,0.00017014,2]
[400684492,1767779435033,-11397.17569668,0.00017014,2]
[400684494,1767779435043,-346.46491025,0.00017189,2]
[400684496,1767779435052,-1391.05,0.00017192,2]
[400684498,1767779435063,-200.0,0.00017192,2]
[400684500,1767779435072,-500.0,0.00017192,2]
[400684502,1767779435082,-11687.73730403,0.00017235,2]
[400684504,1767779435091,-11397.17569668,0.00017235,2]
[400684506,1767779435102,-1903.8,0.00017277,2]
[400684508,1767779435111,-11687.73730403,0.00017457,2]
[400684510,1767779435122,-11397.17569668,0.00017457,2]
[400684512,1767779435131,-1391.05,0.00017466,2]
[400684514,1767779435142,-500.0,0.00017478,2]
[400684516,1767779435154,-1680.0,0.00017479,2]
[400684519,1767779435165,-344.57989752,0.00017494,2]
[400684521,1767779435175,-195.0,0.00017496,2]
[400684523,1767779435185,-300.0,0.00017496,2]
[400684525,1767779435195,-250.0,0.00017496,2]
[400684527,1767779435204,-600.0,0.00017496,2]
[400684528,1767779435213,-600.0,0.00017496,2]
[400684530,1767779435223,-600.0,0.00017496,2]
[400684532,1767779435232,-420.0,0.00017499,2]
[400684534,1767779435241,-420.0,0.00017499,2]
[400684536,1767779435250,-500.0,0.00017594,2]
[400684538,1767779435259,-500.0,0.00017594,2]
[400684539,1767779435268,-500.0,0.00017594,2]
[400684541,1767779435278,-500.0,0.00017594,2]
[400684542,1767779435288,-501.30918073,0.00017594,2]
[400684543,1767779435297,-500.0,0.00017594,2]
[400684544,1767779435307,-500.0,0.00017594,2]
[400684545,1767779435316,-552.50710843,0.00017594,2]
[400684546,1767779435326,-500.0,0.00017594,2]
[400684547,1767779435336,-500.0,0.00017594,2]
[400684548,1767779435346,-500.0,0.00017594,2]
[400684549,1767779435355,-500.0,0.00017594,2]
[400684550,1767779435366,-519.44971303,0.00017594,2]
[400684551,1767779435377,-500.0,0.00017594,2]
[400684552,1767779435387,-500.0,0.00017594,2]
[400684553,1767779435397,-500.0,0.00017594,2]
[400684554,1767779435407,-500.0,0.00017594,2]
[400684555,1767779435417,-500.0,0.00017594,2]
[400684556,1767779435427,-500.0,0.00017594,2]
[400684557,1767779435436,-324.19847389,0.00017594,2]
[400684558,1767779435446,-2268.92737333,0.00017606,2]
[400684559,1767779435454,-195.0,0.00017606,2]
[400684560,1767779435464,-300.0,0.00017607,2]
[400684561,1767779435474,-195.0,0.00017607,2]
[400684562,1767779435483,-193.0,0.00017607,2]
[400684563,1767779435493,-12813.93978635,0.00017612,2]
[400684564,1767779435503,-600.0,0.00017645,2]
[400684565,1767779435513,-600.0,0.00017645,2]
[400684566,1767779435522,-5000.0,0.00017645,2]
[400684567,1767779435532,-1969.66451728,0.00017645,2]
[400684568,1767779435542,-11687.73730403,0.00017678,2]
[400684569,1767779435552,-11397.17569668,0.00017678,2]
[400684570,1767779435561,-227.59193555,0.00017706,2]
[400684571,1767779435571,-2500.0,0.00017714,2]
[400684572,1767779435581,-195.0,0.00017714,2]
[400684573,1767779435592,-193.0,0.00017714,2]
[400684574,1767779435602,-300.0,0.00017714,2]
[400684575,1767779435611,-250.0,0.00017714,2]
[400684576,1767779435621,-1391.05,0.0001774,2]
[400684577,1767779435631,-200.0,0.0001774,2]
[400684578,1767779435640,-500.0,0.0001774,2]
[400684579,1767779435650,-5512.746,0.000179,2]
[400684580,1767779435660,-201.99613239,0.000179,3]
[400684581,1767779435670,-2721.58441317,0.000179,2]
[400684582,1767779435679,-4018.93893449,0.000179,2]
[400684583,1767779435689,-11687.73730403,0.000179,2]
[400684584,1767779435700,-632.711033,0.000179,2]
[400684585,1767779435710,-11397.17569668,0.000179,2]
[400684586,1767779435719,-310.0,0.00017973,2]
[400684587,1767779435728,-500.0,0.00017982,2]
[400684588,1767779435738,-626.80784924,0.00017986,2]
[400684589,1767779435748,-165.17,0.0001799,2]
[400684590,1767779435757,-626.80784924,0.0001799,2]
[400684591,1767779435767,-151.0,0.00017993,2]
[400684592,1767779435775,-500.0,0.00017995,2]
[400684593,1767779435785,-500.0,0.00017995,2]
[400684594,1767779435795,-103879.47351172,0.00017996,2]
[400684595,1767779436469,-56760.12409432,0.00017996,2]
[400684596,1767779436481,-31362.82388736,0.00017996,2]
[400684597,1767779436491,-1863.1579276,0.00017996,2]
[400684598,1767779436501,-151.0,0.00017997,2]
[400684599,1767779436521,-240.87342203,0.00017999,2]
[400684600,1767779436541,-500.0,0.00017999,2]
[400684601,1767779436552,-500.0,0.00017999,2]
[400684602,1767779436562,-500.0,0.00017999,2]
[400684603,1767779436571,-500.0,0.00017999,2]
[400684604,1767779436580,-500.0,0.00017999,2]
[400684605,1767779436589,-500.0,0.00017999,2]
[400684606,1767779436597,-500.0,0.00017999,2]
[400684607,1767779436605,-500.0,0.00017999,2]
[400684608,1767779436614,-500.0,0.00017999,2]
[400684609,1767779436625,-500.0,0.00017999,2]
[400684610,1767779436636,-500.0,0.00017999,2]
[400684611,1767779436645,-500.0,0.00017999,2]
[400684612,1767779436655,-500.0,0.00017999,2]
[400684613,1767779436664,-276.05434809,0.00017999,2]
[400684614,1767779436673,-300.0,0.00017999,2]
[400684615,1767779436683,-500.0,0.00017999,2]
[400684616,1767779436692,-461.49248906,0.00017999,2]
[400684617,1767779436701,-666.0,0.00017999,2]
[400684618,1767779436710,-500.0,0.00017999,2]
[400684619,1767779436719,-500.0,0.00017999,2]
[400684620,1767779436728,-500.0,0.00017999,2]
[400684621,1767779436737,-500.0,0.00017999,2]
[400684622,1767779436747,-500.0,0.00017999,2]
[400684623,1767779436756,-531.52006841,0.00017999,2]
[400684624,1767779436765,-300.0,0.00017999,2]
[400684625,1767779436774,-666.0,0.00017999,2]
[400684626,1767779436784,-500.0,0.00017999,2]
[400684627,1767779436793,-500.0,0.00017999,2]
[400684628,1767779436802,-500.0,0.00017999,2]
[400684629,1767779436811,-500.0,0.00017999,2]
[400684630,1767779436820,-500.0,0.00017999,2]
[400684631,1767779436829,-500.0,0.00017999,2]
[400684632,1767779436838,-500.0,0.00017999,2]
[400684633,1767779436849,-500.0,0.00017999,2]
[400684634,1767779436858,-474.29981828,0.00017999,2]
[400684635,1767779436867,-300.0,0.00017999,2]
[400684636,1767779436878,-651.03116604,0.00017999,2]
[400684637,1767779436887,-500.0,0.00017999,2]
[400684638,1767779436896,-500.0,0.00017999,2]
[400684639,1767779436905,-260.6232917,0.00017999,2]
[400684640,1767779436914,-500.0,0.00017999,2]
[400684641,1767779436923,-493.05453992,0.00017999,2]
[400684642,1767779436933,-202.53434084,0.00017999,2]
[400684643,1767779436943,-500.0,0.00017999,2]
[400684644,1767779436957,-500.0,0.00017999,2]
[400684645,1767779436965,-296.44508333,0.00017999,2]
[400684646,1767779436974,-500.0,0.00017999,2]
[400684647,1767779436984,-500.0,0.00017999,2]
[400684648,1767779436993,-500.0,0.00017999,2]
[400684649,1767779437002,-213.63565604,0.00017999,2]
[400684650,1767779437011,-220.53194376,0.00017999,2]
[400684651,1767779437022,-361.04706775,0.00017999,2]